Cogmind - Beta 16 @@@ ROGUE MODE // 2025.11.26 @ 00:32:46 // Winter2019/RPGLIKE Player: Rentaro Result: Escaped! Performance ------------- Evolutions (9) 4500 Regions Visited (14) 2800 Robots Destroyed (0) 0 Value Destroyed (0) 0 Prototype IDs (30) 600 Alien Tech Used (0) 0 Bonus (16335) 16335 TOTAL SCORE: 24235 Bonus ------- Pacifist 10963 Aligned with FarCom 300 Win 3000 Win Speed 2072 Cogmind --------- Core Integrity 154/1200 Matter 191/300 Energy 216/220 System Corruption 0% Temperature Cool (10) Movement Flying (19) Location To Epsilon Eridani Parts ------- > --- POWER (2) -------- Light Fission Core Light Fission Core > --- PROPULSION (5) --- Diametric Drive Diametric Drive Diametric Drive Diametric Drive Cooled Impulse Thruster > --- UTILITY (8) ------ Structural Scanner Advanced Transmission Jammer Experimental ECM Suite Advanced Reaction Control System Advanced Phase Shifter Advanced Cloaking Device Graphene Brace Skeleton Box > --- WEAPON (1) ------- Enhanced Nova Cannon > --- INVENTORY (2) ---- Cooled Field Propulsion Drive Stasis Canceller Peak State ------------ > --- POWER ------------ Light Fission Core Light Fission Core > --- PROPULSION ------- Diametric Drive Diametric Drive Diametric Drive Diametric Drive Cooled Impulse Thruster > --- UTILITY ---------- Structural Scanner Advanced Transmission Jammer Experimental ECM Suite Advanced Reaction Control System Advanced Phase Shifter Advanced Cloaking Device Graphene Brace Skeleton Box > --- WEAPON ----------- Enhanced Nova Cannon > --- INVENTORY -------- Cooled Field Propulsion Drive Stasis Canceller [Rating: 115] Favorites ----------- Power Light Fission Core Engine Light Ion Engine Power Core Light Fission Core Propulsion Flight Unit Flight Unit Flight Unit Utility Structural Scanner Device Structural Scanner Processor Advanced Signal Interpreter Weapon Heavy Phase Cannon Energy Cannon Heavy Phase Cannon Slashing Weapon Scythe Special Melee Weapon Datajack Build | -11 -10 -10 -9 -9 -9 -8 -8 -7 -6 -5 -4 -3 -2 -1 ------- Run | Yrd Mat Min Mat Min Exi Min Mat Fac Fac Fac Fac Res Res Acc Slots Evolved 12 | 4 . . . . . . 2 1 1 . 1 2 . 1 Power 1 | . . . . . . . . . . . . 1 . . Propulsion 4 | 1 . . . . . . 2 . . . . 1 . . Utility 7 | 3 . . . . . . . 1 1 . 1 . . 1 Weapon . | . . . . . . . . . . . . . . . Parts Attached 45 | 1 4 1 . 1 1 . 4 2 8 1 5 5 2 10 Power 4 | 1 . . . . . . 1 . 1 . . 1 . . Engine 1 | 1 . . . . . . . . . . . . . . Core 3 | . . . . . . . 1 . 1 . . 1 . . Reactor . | . . . . . . . . . . . . . . . Propulsion 15 | . 2 1 . . . . 1 . 2 . 3 1 . 5 Treads . | . . . . . . . . . . . . . . . Leg . | . . . . . . . . . . . . . . . Wheel . | . . . . . . . . . . . . . . . Hover . | . . . . . . . . . . . . . . . Flight 15 | . 2 1 . . . . 1 . 2 . 3 1 . 5 Utility 20 | . 1 . . . 1 . 1 2 5 . 2 3 . 5 Device 18 | . 1 . . . 1 . . 2 4 . 2 3 . 5 Storage . | . . . . . . . . . . . . . . . Processor 2 | . . . . . . . 1 . 1 . . . . . Hackware . | . . . . . . . . . . . . . . . Protection . | . . . . . . . . . . . . . . . Artifact . | . . . . . . . . . . . . . . . Weapon 6 | . 1 . . 1 . . 1 . . 1 . . 2 . Energy Gun . | . . . . . . . . . . . . . . . Energy Cannon 3 | . . . . . . . . . . 1 . . 2 . Ballistic Gun . | . . . . . . . . . . . . . . . Ballistic Cannon . | . . . . . . . . . . . . . . . Launcher . | . . . . . . . . . . . . . . . Special Weapon . | . . . . . . . . . . . . . . . Impact Weapon . | . . . . . . . . . . . . . . . Slashing Weapon 1 | . . . . . . . 1 . . . . . . . Piercing Weapon . | . . . . . . . . . . . . . . . Special Melee Weapon 2 | . 1 . . 1 . . . . . . . . . . Unidentified Prototypes 7 | . . . . . . . . . 1 . 1 1 . 4 Parts Lost 2 | . . 1 . . . . . . 1 . . . . . Power . | . . . . . . . . . . . . . . . Propulsion 1 | . . . . . . . . . 1 . . . . . Utility . | . . . . . . . . . . . . . . . Weapon 1 | . . 1 . . . . . . . . . . . . Highest Loss Streak 1 | . . 1 . . . . . . 1 . . . . . To Critical Strikes . | . . . . . . . . . . . . . . . Average Backups 1 | . . . . . . . . . 1 1 1 1 2 1 Power . | . . . . . . . . . . 1 1 . . . Propulsion . | . . . . . . . . . . . . . . . Utility . | . . . . . . . . . . . . 1 2 1 Weapon . | . . . . . . . . . . . . . . . Tool/Special . | . . . . . . . . . . . . . . . Unused Backups 3 | . . . . . . . . . 1 . . 1 . 1 Power . | . . . . . . . . . . . . . . . Propulsion . | . . . . . . . . . . . . . . . Utility 1 | . . . . . . . . . . . . . . 1 Weapon 1 | . . . . . . . . . . . . 1 . . Tool/Special 1 | . . . . . . . . . 1 . . . . . Average Slot Usage (%) 83 | . 28 61 50 54 67 75 71 89 90 83 92 98 93 94 Engine 2 | . 12 12 12 12 12 12 1 . . . . . . . Core 7 | . . . . . . . 8 9 8 8 7 13 13 12 Flight 24 | . 12 25 25 25 25 25 28 28 25 16 24 27 26 26 Device 34 | . 1 12 12 12 17 25 20 32 39 41 45 41 40 43 Processor 5 | . . . . . . . 2 9 8 8 7 6 6 4 Energy Cannon 3 | . . . . . . . . . . 3 7 6 6 6 Slashing Weapon 2 | . . . . . . . 7 9 8 4 . . . . Special Melee Weapon 1 | . 2 11 . 4 12 12 2 . . . . . . . Peak Build Rating 115 | 1 5 5 4 5 11 11 20 28 48 48 68 89 92 115 Average Rating 51 | . 2 4 4 4 7 11 16 26 43 46 61 78 90 100 On Entrance 28 | . 1 5 4 4 5 11 11 20 28 45 48 68 89 92 Avg Prop Armor Cover (%) 8 | . . 8 8 . . . . . . . . . . . Naked Turns . | . . . . . . . . . . . . . . . Heaviest Build 41 | 3 5 5 4 5 7 7 10 12 17 25 26 35 38 41 Greatest Support 55 | 3 8 8 8 8 8 8 17 17 26 27 35 46 49 55 Greatest Overweight (x) 1 | . . . . . . . . . . . . 1 . 1 Average Overweight (x) . | . . . . . . . . . . . . . . . Largest Inventory Capacity 2 | . . . . 1 1 1 1 1 1 1 2 2 2 2 Average Capacity 1 | . . . . . 1 1 1 1 1 1 1 2 2 2 Most Carried 2 | . . . . 1 . . 1 1 1 1 2 2 2 2 Average Carried 1 | . . . . . . . . . . 1 1 1 2 1 Final Capacity 2 | . . . . 1 1 1 1 1 1 1 2 2 2 2 Final Carried 2 | . . . . . . . . 1 1 1 2 2 2 2 Class Distribution -------------------- 54% | Hacker-Sprinter 21% | Hacker-Mutant 20% | Mutant 3% | Infiltrator-Sprinter Dominant Class ---------------- Mutant | -10/Materials Mutant | -10/Mines Mutant | -9/Materials Mutant | -9/Mines Mutant | -9/Exiles Mutant | -8/Mines Hacker-Sprinter | -8/Materials Hacker-Sprinter | -7/Factory Hacker-Sprinter | -6/Factory Hacker-Mutant | -5/Factory Hacker-Mutant | -4/Factory Hacker-Sprinter | -3/Research Hacker-Sprinter | -2/Research Hacker-Sprinter | -1/Access Resources | -11 -10 -10 -9 -9 -9 -8 -8 -7 -6 -5 -4 -3 -2 -1 ----------- Run | Yrd Mat Min Mat Min Exi Min Mat Fac Fac Fac Fac Res Res Acc Matter Collected 595 | 45 . 210 . 10 . . . . . 165 15 . 90 60 Remotely . | . . . . . . . . . . . . . . . Salvage Created . | . . . . . . . . . . . . . . . Parts . | . . . . . . . . . . . . . . . Haulers Intercepted . | . . . . . . . . . . . . . . . Recyclers Shooed . | . . . . . . . . . . . . . . . Parts Field Recycled . | . . . . . . . . . . . . . . . Retrieved Matter . | . . . . . . . . . . . . . . . Parts Self-Destructed . | . . . . . . . . . . . . . . . Prevented . | . . . . . . . . . . . . . . . Parts Restored . | . . . . . . . . . . . . . . . Kills | -11 -10 -10 -9 -9 -9 -8 -8 -7 -6 -5 -4 -3 -2 -1 ------- Run | Yrd Mat Min Mat Min Exi Min Mat Fac Fac Fac Fac Res Res Acc Combat Hostiles Destroyed . | . . . . . . . . . . . . . . . Classes Destroyed . | . . . . . . . . . . . . . . . Best Kill Streak . | . . . . . . . . . . . . . . . Combat Bots Only . | . . . . . . . . . . . . . . . Max Kills in Single Turn . | . . . . . . . . . . . . . . . Gunslinging . | . . . . . . . . . . . . . . . Exploded . | . . . . . . . . . . . . . . . Melee . | . . . . . . . . . . . . . . . Uniques/NPCs Destroyed . | . . . . . . . . . . . . . . . Combat | -11 -10 -10 -9 -9 -9 -8 -8 -7 -6 -5 -4 -3 -2 -1 -------- Run | Yrd Mat Min Mat Min Exi Min Mat Fac Fac Fac Fac Res Res Acc Hostile Shots Fired 239 | . 1 30 62 14 . 2 1 . 41 1 4 58 2 23 Missed 145 | . . 14 36 7 . 1 1 . 28 1 3 35 1 18 Hits 94 | . 1 16 26 7 . 1 . . 13 . 1 23 1 5 Projectile 94 | . 1 16 26 7 . 1 . . 13 . 1 23 1 5 Critical Strikes 4 | . . . . . . . . . 1 . . 1 . 2 Actively Blocked 3 | . . . . . . . . . . . . 1 . 2 Part Disruptions 1 | . . 1 . . . . . . . . . . . . Damage Taken 1629 | . 11 191 213 90 . 13 . 72 202 . 19 501 81 236 Core 1361 | . 11 169 186 76 . 13 . 56 176 . 15 408 64 187 Absorbed by Shields . | . . . . . . . . . . . . . . . Redirected to Core 958 | . . 78 82 44 . . . 56 92 . 15 340 64 187 Ignored by Resistances 81 | . . . . . . . . . 22 . 3 23 10 23 Core Remaining (%) 49 | 100 . 70 . . . 76 76 67 38 38 35 20 14 12 Volleys Fired 71 | . . . . . . . . . . 1 24 13 2 31 Largest 1 | . . . . . . . . . . 1 1 1 1 1 Hottest 120 | . . . . . . . . . . 90 90 90 120 120 Shots Fired 72 | . . . . . . . . . . 1 24 14 2 31 Gun . | . . . . . . . . . . . . . . . Cannon 72 | . . . . . . . . . . 1 24 14 2 31 Launcher . | . . . . . . . . . . . . . . . Special . | . . . . . . . . . . . . . . . Kinetic . | . . . . . . . . . . . . . . . Thermal 72 | . . . . . . . . . . 1 24 14 2 31 Explosive . | . . . . . . . . . . . . . . . Electromagnetic . | . . . . . . . . . . . . . . . Robot Hit Streak . | . . . . . . . . . . . . . . . Robot Miss Streak . | . . . . . . . . . . . . . . . Penetration Max . | . . . . . . . . . . . . . . . Secondary Targets . | . . . . . . . . . . . . . . . Shots Hit Robots . | . . . . . . . . . . . . . . . Core Hits . | . . . . . . . . . . . . . . . Critical Kills . | . . . . . . . . . . . . . . . Critical Parts Destroyed . | . . . . . . . . . . . . . . . Critical Strikes . | . . . . . . . . . . . . . . . Melee Attacks 20 | . . . . . . . 6 3 7 4 . . . . Impact . | . . . . . . . . . . . . . . . Slashing 20 | . . . . . . . 6 3 7 4 . . . . Piercing . | . . . . . . . . . . . . . . . Sneak Attacks . | . . . . . . . . . . . . . . . Combat Hostiles . | . . . . . . . . . . . . . . . Follow-up Attacks . | . . . . . . . . . . . . . . . Damage Inflicted . | . . . . . . . . . . . . . . . Guns . | . . . . . . . . . . . . . . . Cannons . | . . . . . . . . . . . . . . . Explosions . | . . . . . . . . . . . . . . . Melee . | . . . . . . . . . . . . . . . Ramming . | . . . . . . . . . . . . . . . Kinetic . | . . . . . . . . . . . . . . . Thermal . | . . . . . . . . . . . . . . . Explosive . | . . . . . . . . . . . . . . . Electromagnetic . | . . . . . . . . . . . . . . . Impact . | . . . . . . . . . . . . . . . Slashing . | . . . . . . . . . . . . . . . Piercing . | . . . . . . . . . . . . . . . Highest Corruption 4 | . . . . . . . . 2 . 1 . 4 . . Average Corruption 3 | . . . . . . . . 1 . 1 . 3 . . Corruption Purged 2 | . . . . . . . . 2 . . . . . . Corruption Blocked . | . . . . . . . . . . . . . . . Effects 7 | . . . . . . . . 1 . . . 6 . . Message Errors 2 | . . . . . . . . 1 . . . 1 . . Matter Fused 2 | . . . . . . . . . . . . 2 . . Heat Flow Errors 1 | . . . . . . . . . . . . 1 . . Energy Discharges 1 | . . . . . . . . . . . . 1 . . Misfires 1 | . . . . . . . . . . . . 1 . . Overload Shots . | . . . . . . . . . . . . . . . Overflow Damage . | . . . . . . . . . . . . . . . Projectiles . | . . . . . . . . . . . . . . . Explosions . | . . . . . . . . . . . . . . . Melee . | . . . . . . . . . . . . . . . Knockbacks . | . . . . . . . . . . . . . . . Impact . | . . . . . . . . . . . . . . . Kinetic . | . . . . . . . . . . . . . . . Secondary . | . . . . . . . . . . . . . . . Self-Inflicted Damage . | . . . . . . . . . . . . . . . Shots . | . . . . . . . . . . . . . . . Rammed . | . . . . . . . . . . . . . . . Targets Rammed . | . . . . . . . . . . . . . . . Kicked . | . . . . . . . . . . . . . . . Crushed . | . . . . . . . . . . . . . . . Highest Temperature 322 | . . 3 . 2 . . . . 22 62 264 318 84 322 Average Temperature 111 | . . 2 . 2 . . . . 7 33 112 129 40 114 Received Heat Transfer 194 | . 6 44 15 51 . 9 . . 30 . . 39 . . Effects 12 | . . . . . . . . . . . 3 6 . 3 Energy Bleed 1 | . . . . . . . . . . . . 1 . . Interference 11 | . . . . . . . . . . . 3 5 . 3 Siege Activations . | . . . . . . . . . . . . . . . Martial Activations . | . . . . . . . . . . . . . . . Shielding Activations . | . . . . . . . . . . . . . . . Robots Disrupted . | . . . . . . . . . . . . . . . Combat Hostiles . | . . . . . . . . . . . . . . . Robots Corrupted . | . . . . . . . . . . . . . . . Combat Hostiles . | . . . . . . . . . . . . . . . Parts Fried . | . . . . . . . . . . . . . . . Impact Corruptions . | . . . . . . . . . . . . . . . Robots Melted . | . . . . . . . . . . . . . . . Combat Hostiles . | . . . . . . . . . . . . . . . Parts Melted . | . . . . . . . . . . . . . . . Heat Transferred . | . . . . . . . . . . . . . . . Parts Sabotaged . | . . . . . . . . . . . . . . . Parts Stolen . | . . . . . . . . . . . . . . . Parts Stripped . | . . . . . . . . . . . . . . . Power Chain Reactions . | . . . . . . . . . . . . . . . Alert | -11 -10 -10 -9 -9 -9 -8 -8 -7 -6 -5 -4 -3 -2 -1 ------- Run | Yrd Mat Min Mat Min Exi Min Mat Fac Fac Fac Fac Res Res Acc Maximum Alert Level . | . . . . . . . . . . . . . . . Low Security (%) 100 | 100 100 100 100 100 . 100 100 100 100 100 100 100 100 100 Level 1 . | . . . . . . . . . . . . . . . Level 2 . | . . . . . . . . . . . . . . . Level 3 . | . . . . . . . . . . . . . . . Level 4 . | . . . . . . . . . . . . . . . Level 5 . | . . . . . . . . . . . . . . . High Security . | . . . . . . . . . . . . . . . Max Security . | . . . . . . . . . . . . . . . Peak Influence 83 | . 35 83 8 35 . . 30 76 31 16 19 28 9 21 Initial 17 | . . 13 . . . . . 13 17 . . . 9 . Average 7 | . 10 26 . 6 . . 1 42 4 1 2 6 2 3 Influence Increases 922 | . 45 135 8 45 . . 36 133 97 37 101 131 14 140 Successful Hack 196 | . . . 8 . . . . 25 15 27 44 43 8 26 Select Force Hacks 120 | . . . . . . . . 60 60 . . . . . Destroy Structure 186 | . . . . . . . 6 3 7 10 42 28 6 84 Partial Spotted 150 | . . . . . . . 30 . 15 . 15 60 . 30 Lose Combat Pursuer 270 | . 45 135 . 45 . . . 45 . . . . . . Influence Decreases 922 | . 10 170 8 45 . . 6 127 133 37 101 114 31 140 Entered New Map 66 | . . 22 . . . . . 17 19 . . . 8 . Time Decay 832 | . 10 148 8 45 . . 6 110 104 27 97 114 23 140 Lost Ally 24 | . . . . . . . . . 10 10 4 . . . Squads Dispatched 28 | . . . . . . . 1 3 7 1 3 4 1 8 Investigation 9 | . . . . . . . . 3 3 1 1 . 1 . Extermination 10 | . . . . . . . . . 2 . 2 2 . 4 Reinforcement 9 | . . . . . . . 1 . 2 . . 2 . 4 Assault . | . . . . . . . . . . . . . . . Garrison . | . . . . . . . . . . . . . . . Intercept . | . . . . . . . . . . . . . . . Searches Triggered . | . . . . . . . . . . . . . . . Construction Impeded . | . . . . . . . . . . . . . . . Haulers Reinforced . | . . . . . . . . . . . . . . . Active Scanning Responses . | . . . . . . . . . . . . . . . Cargo Convoy Interrupts . | . . . . . . . . . . . . . . . Stealth | -11 -10 -10 -9 -9 -9 -8 -8 -7 -6 -5 -4 -3 -2 -1 --------- Run | Yrd Mat Min Mat Min Exi Min Mat Fac Fac Fac Fac Res Res Acc Distress Signals 9 | . 2 1 1 . . . . . . . 1 3 . 1 Communications Jammed 15 | . . . . . . . . . . . 4 2 3 6 Distress Signals 14 | . . . . . . . . . . . 4 2 3 5 Times Spotted 148 | . 6 39 17 7 . 3 3 4 8 3 4 27 2 25 Peak Tracking Total 23 | . 5 23 16 3 . 3 2 2 2 1 2 7 1 5 Tactical Retreats 33 | . 2 5 . 1 . . . 2 5 1 2 6 . 9 ECM-based Alert Blocks 45 | . . . . . . . . . 6 2 2 21 . 14 Traps | -11 -10 -10 -9 -9 -9 -8 -8 -7 -6 -5 -4 -3 -2 -1 ------- Run | Yrd Mat Min Mat Min Exi Min Mat Fac Fac Fac Fac Res Res Acc Traps Triggered 3 | . . . . . . . . 1 . 1 . 1 . . Indirectly . | . . . . . . . . . . . . . . . Trap Hack Attempts . | . . . . . . . . . . . . . . . Triggered . | . . . . . . . . . . . . . . . Disarmed . | . . . . . . . . . . . . . . . Reprogrammed . | . . . . . . . . . . . . . . . Reused . | . . . . . . . . . . . . . . . Traps Extracted . | . . . . . . . . . . . . . . . Installed . | . . . . . . . . . . . . . . . Triggered . | . . . . . . . . . . . . . . . Machines | -11 -10 -10 -9 -9 -9 -8 -8 -7 -6 -5 -4 -3 -2 -1 ---------- Run | Yrd Mat Min Mat Min Exi Min Mat Fac Fac Fac Fac Res Res Acc Machines Disabled . | . . . . . . . . . . . . . . . Max in Single Turn . | . . . . . . . . . . . . . . . Garrison Access 1 | . . . . . . . . . . . . . . 1 Machines Repaired . | . . . . . . . . . . . . . . . Machines Dismantled . | . . . . . . . . . . . . . . . Machines Sabotaged . | . . . . . . . . . . . . . . . Overloaded Fab Kills . | . . . . . . . . . . . . . . . Hacking | -11 -10 -10 -9 -9 -9 -8 -8 -7 -6 -5 -4 -3 -2 -1 --------- Run | Yrd Mat Min Mat Min Exi Min Mat Fac Fac Fac Fac Res Res Acc Machines Accessed 45 | . 1 . 1 . 1 . 2 5 6 3 6 5 4 11 Terminals 32 | . . . 1 . . . 2 3 3 3 4 5 1 10 Fabricators 1 | . . . . . . . . . 1 . . . . . Repair Stations . | . . . . . . . . . . . . . . . Recycling Units 7 | . 1 . . . . . . 2 2 . 1 . 1 . Scanalyzers 2 | . . . . . . . . . . . . . 2 . Garrison Access 2 | . . . . . . . . . . . 1 . . 1 Total Hacks 130 | . 2 . 4 . 1 . 9 19 21 18 18 10 11 17 Successful 54 | . 1 . 1 . 1 . 3 9 10 10 3 4 6 6 Failed 76 | . 1 . 3 . . . 6 10 11 8 15 6 5 11 Catastrophic 22 | . . . 2 . . . 2 3 2 4 2 2 1 4 Database Lockouts . | . . . . . . . . . . . . . . . Manual 77 | . . . 4 . 1 . 9 9 11 12 7 7 5 12 Terminals 98 | . . . 4 . . . 9 11 14 18 11 10 5 16 Fabricators 1 | . . . . . . . . . 1 . . . . . Repair Stations . | . . . . . . . . . . . . . . . Recycling Units 22 | . 2 . . . . . . 8 6 . 5 . 1 . Scanalyzers 5 | . . . . . . . . . . . . . 5 . Garrison Access 3 | . . . . . . . . . . . 2 . . 1 Terminal Hacks 22 | . . . 1 . 1 . . 3 4 7 1 1 1 3 Open Door 3 | . . . . . . . . . . . . . . 3 Level Access Points 6 | . . . . . . . . 1 1 1 1 1 1 . Branch Access Points 3 | . . . 1 . . . . . 1 1 . . . . Terminal Index 2 | . . . . . . . . 1 . 1 . . . . Locate Traps 4 | . . . . . . . . 1 1 2 . . . . Registered Components 2 | . . . . . . . . . 1 1 . . . . Zone Layout 1 | . . . . . . . . . . 1 . . . . Proto ID Catalog 1 | . . . . . 1 . . . . . . . . . Fabricator Hacks 1 | . . . . . . . . . 1 . . . . . Network Status 1 | . . . . . . . . . 1 . . . . . Repair Station Hacks . | . . . . . . . . . . . . . . . Recycling Unit Hacks 5 | . 1 . . . . . . 1 2 . . . 1 . Retrieve Components 5 | . 1 . . . . . . 1 2 . . . 1 . Scanalyzer 3 | . . . . . . . . . . . . . 3 . Retrieve Study 3 | . . . . . . . . . . . . . 3 . Garrison Access Hacks 1 | . . . . . . . . . . . . . . 1 Seal Access 1 | . . . . . . . . . . . . . . 1 Unauthorized Hacks 22 | . . . . . . . 3 5 3 3 2 3 1 2 Terminals 18 | . . . . . . . 3 3 1 3 2 3 1 2 Assimilate 4 | . . . . . . . . 1 . 1 2 . . . Botnet 11 | . . . . . . . 2 1 1 1 . 3 1 2 Operators 3 | . . . . . . . 1 1 . 1 . . . . Fabricators . | . . . . . . . . . . . . . . . Repair Stations . | . . . . . . . . . . . . . . . Recycling Units 4 | . . . . . . . . 2 2 . . . . . Tunnel 4 | . . . . . . . . 2 2 . . . . . Scanalyzers . | . . . . . . . . . . . . . . . Garrison Access . | . . . . . . . . . . . . . . . Data Cores Recovered . | . . . . . . . . . . . . . . . Used . | . . . . . . . . . . . . . . . Hacking Detections 34 | . . . 1 . . . 2 4 4 3 6 4 3 7 Full Trace Events 5 | . . . . . . . . 1 1 1 1 . 1 . Feedback Events . | . . . . . . . . . . . . . . . Feedback Blocked . | . . . . . . . . . . . . . . . Robot Schematics Acquired . | . . . . . . . . . . . . . . . Robots Built . | . . . . . . . . . . . . . . . Authchips . | . . . . . . . . . . . . . . . Time . | . . . . . . . . . . . . . . . Total Robot Build Rating . | . . . . . . . . . . . . . . . Part Schematics Acquired . | . . . . . . . . . . . . . . . Parts Built . | . . . . . . . . . . . . . . . Authchips . | . . . . . . . . . . . . . . . Time . | . . . . . . . . . . . . . . . Total Part Build Rating . | . . . . . . . . . . . . . . . Part Studies Acquired 3 | . . . . . . . . . . . . . 3 . Parts Repaired . | . . . . . . . . . . . . . . . Time . | . . . . . . . . . . . . . . . Parts Recycled . | . . . . . . . . . . . . . . . Recycled Matter . | . . . . . . . . . . . . . . . Retrieved Matter . | . . . . . . . . . . . . . . . Retrieved Components 7 | . 1 . . . . . . . 5 . . . 1 . Parts Scanalyzed . | . . . . . . . . . . . . . . . Part Schematics Acquired . | . . . . . . . . . . . . . . . Parts Damaged . | . . . . . . . . . . . . . . . Bothacking | -11 -10 -10 -9 -9 -9 -8 -8 -7 -6 -5 -4 -3 -2 -1 ------------ Run | Yrd Mat Min Mat Min Exi Min Mat Fac Fac Fac Fac Res Res Acc Used RIF Installer . | . . . . . . . . . . . . . . . Robots Hacked . | . . . . . . . . . . . . . . . Non-combat . | . . . . . . . . . . . . . . . Combat . | . . . . . . . . . . . . . . . Robot Hacks Applied . | . . . . . . . . . . . . . . . Relay Couplers Released . | . . . . . . . . . . . . . . . Fabnet Peak Effective % . | . . . . . . . . . . . . . . . Robots Rewired . | . . . . . . . . . . . . . . . Allies Hacked 1 | . . . . . . . . . . . 1 . . . Hacks Repelled . | . . . . . . . . . . . . . . . Allies | -11 -10 -10 -9 -9 -9 -8 -8 -7 -6 -5 -4 -3 -2 -1 -------- Run | Yrd Mat Min Mat Min Exi Min Mat Fac Fac Fac Fac Res Res Acc Total Allies 4 | . . . . . . . . 1 . 1 2 . . . Largest Group 1 | . . . . . . . . 1 1 1 1 . . . Highest-Rated Group 26 | . . . . . . . . 26 26 10 26 . . . Highest-Rated Ally 26 | . . . . . . . . 26 26 10 26 . . . Total Orders . | . . . . . . . . . . . . . . . Ally Attacks . | . . . . . . . . . . . . . . . Total Damage . | . . . . . . . . . . . . . . . Kills . | . . . . . . . . . . . . . . . Allies Corrupted . | . . . . . . . . . . . . . . . Allies Melted . | . . . . . . . . . . . . . . . Intel | -11 -10 -10 -9 -9 -9 -8 -8 -7 -6 -5 -4 -3 -2 -1 ------- Run | Yrd Mat Min Mat Min Exi Min Mat Fac Fac Fac Fac Res Res Acc Active Infowar (turns) 4155 | . 10 412 76 211 84 9 215 226 621 324 710 381 125 751 Structural 4136 | . 10 412 76 211 84 9 215 226 621 324 710 372 125 741 Cloaking 150 | . . . . . . . . . . . . . . 150 Jamming 2721 | . . . . . . . . 219 619 324 502 314 125 618 ECM 2641 | . . . . . . . . . 504 324 710 366 125 612 Robot Analysis Total . | . . . . . . . . . . . . . . . Derelict Logs Recovered 2 | . . 2 . . . . . . . . . . . . Drone Launches . | . . . . . . . . . . . . . . . Drone Recoveries . | . . . . . . . . . . . . . . . Exploration | -11 -10 -10 -9 -9 -9 -8 -8 -7 -6 -5 -4 -3 -2 -1 ------------- Run | Yrd Mat Min Mat Min Exi Min Mat Fac Fac Fac Fac Res Res Acc Turns Passed 4241 | 13 77 412 76 211 84 9 215 226 621 324 710 387 125 751 Spaces Moved 8274 | 22 170 532 190 462 223 23 380 520 858 522 1222 822 352 1976 Core 80 | 22 58 . . . . . . . . . . . . . Treads . | . . . . . . . . . . . . . . . Legs . | . . . . . . . . . . . . . . . Wheels . | . . . . . . . . . . . . . . . Hover . | . . . . . . . . . . . . . . . Flight 8194 | . 112 532 190 462 223 23 380 520 858 522 1222 822 352 1976 Fastest Speed 16 | 50 37 37 37 37 37 37 32 32 27 34 31 28 32 16 Average Speed 32 | 50 41 37 39 37 37 37 33 32 31 34 33 31 32 26 Slowest Speed 114 | 50 50 40 40 37 37 37 37 32 34 34 34 114 32 99 Overloaded Moves 341 | . . . . . . . . . 16 . . 100 . 225 Propulsion Burnouts 1 | . . . . . . . . . 1 . . . . . Robots Hopped 63 | . 1 6 6 6 . 2 3 . 9 3 9 10 2 6 Potential Cave-ins . | . . . . . . . . . . . . . . . Cave-ins Triggered 1 | . . . . . . . . 1 . . . . . . Exploration Rate (%) 35 | 3 33 92 28 79 59 12 40 20 22 18 35 31 10 54 Regions Visited 14 Branch Regions 4 Pre-discovered Areas 5 | . . . . 1 . . . 2 2 . . . . . Known Exits Taken 9 | . . . 1 . . 1 1 1 1 1 1 1 1 . Unknown Exits Taken 5 | 1 1 1 . 1 1 . . . . . . . . . Scrap Searched 3 | . . 1 . 2 . . . . . . . . . . Spaces Dug 86 | . . . . . . . 6 3 7 5 23 13 1 28 Terrain Destroyed 89 | . . . . . . . 6 3 7 5 24 14 2 28 Melee 20 | . . . . . . . 6 3 7 4 . . . . Projectile 69 | . . . . . . . . . . 1 24 14 2 28 AOE . | . . . . . . . . . . . . . . . Terrain Rammed . | . . . . . . . . . . . . . . . Walls Destroyed . | . . . . . . . . . . . . . . . Machines Disabled . | . . . . . . . . . . . . . . . Actions | -11 -10 -10 -9 -9 -9 -8 -8 -7 -6 -5 -4 -3 -2 -1 --------- Run | Yrd Mat Min Mat Min Exi Min Mat Fac Fac Fac Fac Res Res Acc Total 9662 | 22 172 740 183 495 223 21 455 573 1184 657 1491 930 359 2157 Wait 1278 | . . 213 . 23 . 1 67 48 310 133 247 92 4 140 Move 8140 | 21 167 520 177 450 222 19 373 519 840 516 1204 802 347 1963 Hop 56 | . 1 5 6 5 . 1 3 . 8 2 8 9 2 6 Pick Up 8 | . . . . 1 . . . 1 2 . 1 2 . 1 Fast Attach 30 | 1 4 . . 1 1 . 3 2 5 . 4 3 2 4 Attach 2 | . . . . . . . . . . . . 1 . 1 Detach 2 | . . . . . . . . . 1 . . . . 1 Swap 18 | . . 1 . . . . 1 . 5 1 1 3 . 6 Drop 23 | . . 1 . 1 . . 2 . 6 . 2 5 2 4 Fire 71 | . . . . . . . . . . 1 24 13 2 31 Melee 20 | . . . . . . . 6 3 7 4 . . . . Ram . | . . . . . . . . . . . . . . . Kick . | . . . . . . . . . . . . . . . Crush . | . . . . . . . . . . . . . . . Escape Stasis . | . . . . . . . . . . . . . . . Rewire . | . . . . . . . . . . . . . . . Trap . | . . . . . . . . . . . . . . . Miscellaneous 14 | . . . . 14 . . . . . . . . . . Route ------- -11/Scrapyard -10/Materials -10/Mines (discovered 3 exits: *Mat x2 / [Sub]) -9/Materials (discovered 3 exits: Mat / *Min x2) -9/Mines (discovered 2 exits: *Mat / *Exi) -9/Exiles -8/Mines -8/Materials (discovered 2 exits: *Fac / *Sto) -7/Factory (discovered 5 exits: *Fac x4 / *Low) -6/Factory (discovered 6 exits: *Fac x4 / Low x2) -5/Factory (discovered 8 exits: *Fac x4 / Upp x2 / Ext x2) -4/Factory (discovered 4 exits: *Res x4) -3/Research (discovered 3 exits: *Res x3) -2/Research (discovered 4 exits: *Acc x3 / *Tes) -1/Access (discovered 2 exits: [*Sur] / *Com) To Epsilon Eridani History --------- Turn | Location | Event 1 | -11/Scrapyard | Upgraded with Propulsion slot (x1) 1 | -11/Scrapyard | Upgraded with Utility slot (x3) 4 | -11/Scrapyard | Discovered new exit (range 15) 14 | -11/Scrapyard | Entered Materials 84 | -10/Materials | Discovered new exit (range 16) 91 | -10/Materials | Entered Mines 100 | -10/Mines | Learned location of 1 exit from Materials 101 | -10/Mines | Learned Materials stockpile data 104 | -10/Mines | YI-UF0 nonchalantly dropped a Grenade Launcher on the ground 104 | -10/Mines | Discovered new exit (range 11) 122 | -10/Mines | Discovered new exit (range 16) 213 | -10/Mines | Discovered new exit (range 5) 267 | -10/Mines | Assembled infested the area 272 | -10/Mines | Assisted by a Guerilla fighting off Assembled 311 | -10/Mines | Build established: Mutant 503 | -10/Mines | Entered Materials 504 | -9/Materials | Identified exit to Materials 505 | -9/Materials | Reached level 2 558 | -9/Materials | Identified exit to Mines 564 | -9/Materials | Core integrity fell below 50% 579 | -9/Materials | Entered Mines 630 | -9/Mines | Discovered exit to Materials (range 10) 670 | -9/Mines | Learned location of Storage (-8) 687 | -9/Mines | Joined a pair of Derelicts in attacking an 0b10 outpost 788 | -9/Mines | Deemed a non-threat by the Exiles lab entrance 788 | -9/Mines | Discovered new exit (range 5) 790 | -9/Mines | Entered Exiles 799 | -9/Exiles | Met 8R-AWN 806 | -9/Exiles | Met EX-HEX 817 | -9/Exiles | Met EX-BIN 822 | -9/Exiles | Aligned with FarCom system 822 | -9/Exiles | Given EX-Vault access code 833 | -9/Exiles | Opened EX-Vault 835 | -9/Exiles | Found Skeleton Box 845 | -9/Exiles | Warned to stay clear of 0b10 Research branches 855 | -9/Exiles | Met EX-DEC 869 | -9/Exiles | Discovered new exit (range 11) 874 | -9/Exiles | Left Exiles lab with Skeleton Box 874 | -9/Exiles | Entered Mines 876 | -8/Mines | Reached level 3 877 | -8/Mines | Discovered exit to Materials (range 12) 883 | -8/Mines | Entered Materials 885 | -8/Materials | Reached level 4 888 | -8/Materials | Upgraded with Propulsion slot (x2) 1080 | -8/Materials | Discovered new exit (range 4) 1081 | -8/Materials | Identified exit to Storage 1095 | -8/Materials | Discovered new exit (range 8) 1098 | -8/Materials | Identified exit to Factory 1098 | -8/Materials | Entered Factory 1100 | -7/Factory | Reached level 5 1129 | -7/Factory | Crushed by falling debris 1175 | -7/Factory | Upgraded with Utility slot (x1) 1196 | -7/Factory | Build established: Hacker-Sprinter 1214 | -7/Factory | Discovered new exit (range 16) 1219 | -7/Factory | Identified exit to Lower Caves 1248 | -7/Factory | Identified exit to Factory 1324 | -7/Factory | Entered another Factory area 1324 | -6/Factory | Accompanied by 1 ally 1326 | -6/Factory | Reached level 6 1380 | -6/Factory | Identified exit to Lower Caves 1399 | -6/Factory | Reached level 7 1441 | -6/Factory | Upgraded with Utility slot (x1) 1525 | -6/Factory | Identified exit to Factory 1928 | -6/Factory | Core integrity fell below 50% 1945 | -6/Factory | Entered another Factory area 1946 | -5/Factory | Core integrity fell below 50% 1947 | -5/Factory | Reached level 8 2033 | -5/Factory | Identified exit to Factory 2033 | -5/Factory | Identified exit to Upper Caves 2033 | -5/Factory | Identified exit to Extension 2227 | -5/Factory | Build established: Hacker-Mutant 2269 | -5/Factory | Entered another Factory area 2270 | -4/Factory | Core integrity fell below 50% 2271 | -4/Factory | Reached level 9 2375 | -4/Factory | Upgraded with Utility slot (x1) 2813 | -4/Factory | Spotted B-86 Titan 2897 | -4/Factory | Identified exit to Research 2979 | -4/Factory | Reached level 10 2979 | -4/Factory | Entered Research 2980 | -3/Research | Core integrity fell below 50% 2981 | -3/Research | Reached level 11 2996 | -3/Research | Upgraded with Power slot (x1) 3072 | -3/Research | Core integrity fell below 20% 3090 | -3/Research | Spotted B-86 Titan 3093 | -3/Research | Build established: Hacker-Sprinter 3103 | -3/Research | Found Prototype Device 3103 | -3/Research | Identified Exp. Focal Shield 3292 | -3/Research | Upgraded with Propulsion slot (x1) 3348 | -3/Research | Identified exit to Research 3366 | -3/Research | Reached level 12 3366 | -3/Research | Entered another Research area 3367 | -2/Research | Core integrity fell below 50% 3368 | -2/Research | Reached level 13 3410 | -2/Research | Discovered new exit (range 16) 3418 | -2/Research | Identified exit to Testing 3457 | -2/Research | Identified exit to Access 3491 | -2/Research | Core integrity fell below 20% 3491 | -2/Research | Reached level 14 3491 | -2/Research | Entered Access 3492 | -1/Access | Core integrity fell below 50% 3492 | -1/Access | Core integrity fell below 20% 3493 | -1/Access | Reached level 15 3660 | -1/Access | Upgraded with Utility slot (x1) 3887 | -1/Access | Discovered new exit (range 8) 3889 | -1/Access | Identified exit to Command 4117 | -1/Access | Spotted B-99 Colossus 4138 | -1/Access | Found Prototype Device 4138 | -1/Access | Identified Exp. ECM Suite 4240 | -1/Access | Remotely autohacked Sealed Barrier 4241 | -1/Access | Discovered new exit (range 6) 4242 | *** | Escaped! Last Messages --------------- 04138_ ALERT: Potential suspicious activity detected, Programmers report to Access Zone 3W. 04138_ Acquired Prototype Device. 04138_ Identified Exp. ECM Suite. 04146_ H-81 Overseer call for reinforcements jammed. 04150_ Dropped Imp. Phase Shifter. 04175_ O-32 Director: "IFF HANDSHAKE FAILED. SECURING TERMINAL." 04178_ Connecting with Terminal... 04182_ ALERT: Hostiles spotted, dispatching reinforcements to Terminal A007. 04191_ Connecting with Scanalyzer... 04200_ ALERT: Security rotation in progress. 04230_ Skeleton Box locks onto door control terminal, ETC: 10. 04231_ K-01 Serf cleans the Terminal. 04240_ Skeleton Box finishes hacking Sealed Barrier. 04241_ The Access Shell folds into the floor. 04241_ EXIT=FOUND [Achievement: Pacifist] [Achievement: True Flier] Map ----- +----------------------------------------------------+ | #** ##???????????## ##????????## #########? | | #*! ! ##???????????## ##????????## #########? | | ##########??## ## ##????????## ##???????? | | # ?? ####+##### ##????????## ##???????? | | ???????????? + ############ ######???? | | ?????????????? #### #+############ ######???? | | ????????????????### / # # ???? | | ?????????????????## / # # ???? | | ?????????????????## ##### " # # ??? | | ????????????????? ##### "" # # """"??? | | ???????????????? ?????## "" # # """"??? | | ????????????? ??????## "" # # """"??? | | ?????????????###+??????## "" # # """""?? | | ????????????? ??????## "" # # """"" ? | | ???????????????????????## "" # # """"" | | ???????????????????????## " / / | | ???????????????????????## # # | | ???????????????????????## # # | | ???????????????????????############### ########## | | ???????????????????################### ########## | | ???????????????????########### ####### ##???????? | | ???????????????????"" ##???????? | | ??????????????BB????" ##???????? | | ??????????????BB????" ##???????? | | ????????????????????" ##???????? | | ????????????????????" "@ ##???????? | | ????????????????????" "" R##???????? | | ????????????????????" ##???????? | | ??????????????BB????" ##???????? | | ??????????????BB????" """ """ ##???????? | | ???????????????????"" """T""" ##???????? | | ???????????????????########### ####### ##???????? | | ???????????????????################### ##???????? | | ????????????????????????????#####???## ##???????? | | ????????????????????????????????????## ##???????? | | ????????????????????????????????????## ##???????? | | ????????????????????????????????????## ##???????? | | ?????????????????????????????????????? ##???????? | | ?????????????????????????????????????? # ???????? | | ?????????????????????????????????????? # ???????? | | ??????????????????????????????????????? # ???????? | | ?????????????????????????????????????????????????? | | ?????????????????????????????????????????????????? | | ?????????????????????????????????????????????????? | | ?????????????????????????????????????????????????? | | ?????????????????????????????????????????????????? | | ?????????????????????????????????????????????????? | | ?????????????????????????????????????????????????? | | ?????????????????????????????????????????????????? | | ?????????????????????????????????????????????????? | +----------------------------------------------------+ Best States ------------- Heat Dissipation 73 Energy Generation 58 Energy Capacity 220 Matter Stores 300 Matter Capacity 300 Sight Range 16 Terrain Scan Density 10 ECM Strength 3 Jamming Range 16 Cloak Strength 4 Resistance: KI 10 Resistance: TH 5 Phase Shifting 15 Evasion (%) 93 Offensive Hacking 10 Defensive Hacking 10 Item Schematics ----------------- None Robot Schematics ------------------ None Fabricated ------------ Nothing Repaired ---------- Nothing Studied --------- Lgt. Fission Core | -2/Research | Hacked Field Propulsion Drive | -2/Research | Hacked Field Propulsion Array | -2/Research | Hacked Alien Tech Used ----------------- None Achievements -------------- Pacifist True Flier Challenges ------------ None RPGLIKE | -11 -10 -10 -9 -9 -9 -8 -8 -7 -6 -5 -4 -3 -2 -1 --------- Run | Yrd Mat Min Mat Min Exi Min Mat Fac Fac Fac Fac Res Res Acc Levels Raised 14 | . . . 1 . . 1 1 1 2 1 2 2 2 1 XP Earned 25323 | 3000 . 600 1540 500 350 682 1682 2145 2191 2056 2322 3013 3137 2105 XP Spent 23420 | 2900 . . . 250 . . 4250 1400 3050 600 2550 2540 . 5880 Upgrades 48 | 4 . . . 1 . . 11 1 3 1 3 12 . 12 Power Slot 1 | . . . . . . . . . . . . 1 . . Propulsion Slot 4 | 1 . . . . . . 2 . . . . 1 . . Utility Slot 7 | 3 . . . . . . . 1 1 . 1 . . 1 Core Integrity 12 | . . . . . . . . . . . . 8 . 4 Heat Dissipation 8 | . . . . . . . . . . . 1 2 . 5 Energy Generation 5 | . . . . . . . 1 . 2 . . . . 2 Mass Support 2 | . . . . . . . 1 . . 1 . . . . Inventory Capacity 2 | . . . . 1 . . . . . . 1 . . . Hack Attack % 2 | . . . . . . . 2 . . . . . . . Hack Defense % 2 | . . . . . . . 2 . . . . . . . KI Resistance % 2 | . . . . . . . 2 . . . . . . . TH Resistance % 1 | . . . . . . . 1 . . . . . . . Protomatter Created . | . . . . . . . . . . . . . . . Integrity Restored 315 | . . . . 315 . . . . . . . . . . Core 315 | . . . . 315 . . . . . . . . . . Protomatter Decayed 15 | . . 15 . . . . . . . . . . . . Game ------ Seed CobblerHeavyCloak Manual? 0 Play Time 01:21:37 Cumulative 226.5 hours Start 2025.11.25 @ 23:14:08 End 2025.11.26 @ 00:32:46 Sessions 1 Manual Loads 0 Difficulty Rogue Special Mode Winter2019/RPGLIKE Game No. 69 Rogue 69 Adventurer 0 Explorer 0 Win Type 0 Total 10 Types 3/1/2/3/0/1/0/0/0/0 Lore% 66 Gallery% 62 Achievement% 62 Wizard Run 0 Options --------- Layout 2 ASCII 0 Keyboard 0 Movement Mouse Keybinds 1 Fullscreen 2 Font 20/X11 Map View 64x51 Zoom Use 0% Tactical HUD 1 Map Filters NONE Filters NONE Steam 1 RUN: b7f156f7-eefb-43f2-8f56-cfd40b69f244